bitfinex/quotes_ETHUSD_20250801
["timestamp","ask_amount","ask_price","bid_price","bid_amount"]
[1754043612103,0.1376,3636.9,3636.7,2.74972402]
[1754043612404,0.1376,3636.9,3636.3,7.10464585]
[1754043612603,0.1376,3636.9,3636.5,3.52206473]
[1754043612805,0.1376,3636.9,3636.6,2.74980975]
[1754043613021,0.1376,3636.9,3636.6,0.7722]
[1754043613348,0.1376,3636.9,3636.6,3.52200804]
[1754043613763,0.84799941,3636.9,3636.3,0.1376]
[1754043614050,0.1376,3636.5,3636.1,6.96714311]
[1754043614268,17.60006058,3637.1,3635.9,0.7722]
[1754043614269,0.4694,3637.3,3636.4,2.7499725]
[1754043614428,7.217,3637.2,3636.5,2.74989687]
[1754043614613,7.217,3637.2,3636.6,5.01669821]
[1754043614614,0.75294,3637.2,3636.6,5.01669821]
[1754043614814,17.60006058,3638.1,3637.4,2.74921647]
[1754043615128,17.60006058,3638.1,3637.4,3.97871647]
[1754043615129,0.1376,3637.6,3637.4,3.97871647]
[1754043615458,0.1376,3637.7,3637.4,3.97871647]
[1754043615608,0.1376,3637.7,3637.4,8.19571647]
[1754043617418,0.1376,3637.7,3637.2,0.1376]
[1754043617684,8.05465833,3637.5,3636.9,7.7257313]
[1754043617985,0.1376,3637.3,3637.2,2.74929787]
[1754043618683,0.1376,3637.3,3637.2,3.50949787]
[1754043620253,0.1376,3637.3,3637.2,0.7602]
[1754043620557,0.1376,3637.3,3637.2,3.50956764]
[1754043621158,0.0881305,3637.3,3636.9,3.20707559]
[1754043621360,0.0881305,3637.3,3637.0,4.9762]
[1754043621579,0.0881305,3637.3,3637.1,0.7602]
[1754043621982,3.19399238,3637.2,3636.6,6.96577544]
[1754043622173,0.1376,3637.0,3636.7,2.74974241]
[1754043622786,4.216,3637.3,3636.6,4.216]
[1754043622787,3.19401627,3637.2,3636.6,4.216]
[1754043623098,0.4446,3637.2,3636.7,2.74972986]
[1754043623297,0.4446,3637.2,3636.7,3.50992986]
[1754043623605,0.1376,3636.8,3636.7,3.50992986]
[1754043623904,3.0,3637.6,3636.7,2.31337587]
[1754043624104,0.1376,3637.2,3636.9,2.74956562]
[1754043624293,0.1376,3637.2,3637.0,0.7602]
[1754043624495,0.1376,3637.2,3637.0,3.50971413]
[1754043624698,0.1376,3637.2,3637.1,0.7602]
[1754043625912,0.1376,3637.2,3636.8,4.9752]
[1754043625913,0.5822,3637.2,3636.8,4.9752]
[1754043626123,0.1376,3637.0,3636.8,6.96465898]
[1754043626281,0.1376,3637.0,3636.9,0.7602]
[1754043627792,0.1376,3637.0,3636.9,3.50979443]
[1754043627991,0.1376,3637.0,3636.9,0.7602]
[1754043628815,0.1376,3637.0,3636.9,3.50979443]
[1754043629015,0.1376,3637.0,3636.9,0.7602]
[1754043629597,0.1376,3637.0,3636.9,4.215]
[1754043630002,0.91536116,3637.0,3636.2,0.7602]
[1754043630318,0.1376,3636.7,3636.3,4.215]
[1754043630518,0.77776116,3637.0,3636.3,4.215]
[1754043630519,0.1376,3636.5,3636.3,4.215]
[1754043631092,0.1376,3636.5,3636.3,4.9752]
[1754043631292,0.1376,3636.5,3636.1,4.215]
[1754043631492,0.1376,3636.2,3636.1,4.9752]
[1754043631893,0.1376,3636.2,3636.1,0.7602]
[1754043632095,0.1376,3636.2,3636.1,4.9752]
[1754043633323,0.5822,3636.2,3635.1,0.7602]
[1754043633510,2.7504431,3635.8,3635.2,4.215]
[1754043633688,2.98432606,3636.1,3635.2,4.215]
[1754043633689,0.1376,3635.5,3635.2,6.96586626]
[1754043633888,0.1376,3635.5,3635.3,0.7602]
[1754043634127,0.1376,3635.5,3635.3,0.96557137]
[1754043634426,0.1376,3635.5,3635.4,0.7602]
[1754043634929,3.33285769,3635.5,3634.9,4.215]
[1754043635229,3.33285769,3635.5,3634.7,0.7602]
[1754043635230,2.7508228,3635.3,3634.7,4.9752]
[1754043635413,2.75093791,3635.2,3634.7,4.9752]
[1754043635590,3.19553791,3635.2,3634.7,0.7602]
[1754043635787,0.1376,3634.8,3634.7,0.7602]
[1754043636160,0.1376,3634.8,3634.7,2.7512587]
[1754043636323,0.1376,3634.8,3634.6,4.215]
[1754043636621,0.1376,3634.8,3634.7,3.5114587]
[1754043636826,0.1376,3634.8,3634.7,0.7602]
[1754043637635,0.1376,3634.8,3634.7,3.5114587]
[1754043638105,0.1376,3634.8,3634.7,3.9689587]
[1754043638305,0.1376,3634.8,3634.7,4.17243001]
[1754043638626,0.1376,3634.8,3634.7,3.9689587]
[1754043638938,5.28997391,3636.1,3634.7,5.06249487]
[1754043639095,0.1376,3635.0,3634.9,2.75105111]
[1754043639290,0.1376,3635.7,3635.6,2.7505633]
[1754043639522,0.1376,3635.7,3635.6,3.72012463]
[1754043640232,0.5822,3635.7,3635.2,0.7602]
[1754043640526,20.35011581,3636.3,3634.9,0.4575]
[1754043640527,0.4446,3635.6,3635.1,4.216]
[1754043640730,0.1376,3635.2,3635.1,4.216]
[1754043641053,0.1376,3635.2,3634.9,0.7602]
[1754043641709,0.1376,3635.2,3634.8,4.216]
[1754043641921,2.75075585,3635.4,3634.9,0.7602]
[1754043642230,0.1376,3634.9,3634.8,4.216]
[1754043642398,0.1376,3634.9,3634.8,4.42174524]
[1754043642798,0.1376,3634.9,3634.8,5.18194524]
[1754043642998,0.1376,3634.9,3634.8,7.93312824]
[1754043643937,0.1376,3634.9,3634.8,8.39062824]
[1754043644308,0.1376,3634.9,3634.8,9.5048179]
[1754043644524,3.0,3635.7,3635.2,2.75087273]
[1754043644727,2.75018399,3636.2,3635.5,2.75059661]
[1754043644934,0.1376,3635.6,3635.4,2.75069926]
[1754043645242,0.1376,3635.6,3635.3,0.4575]
[1754043645426,0.1376,3635.6,3635.5,2.75065328]
[1754043645612,0.1376,3635.6,3635.5,3.96835328]
[1754043645951,0.1376,3635.6,3635.5,8.18435328]
[1754043646095,3.0,3636.3,3635.6,2.75054355]
[1754043646296,6.96582342,3636.6,3635.9,2.75028097]
[1754043646606,6.96582342,3636.6,3635.8,2.75039502]
[1754043646607,0.1376,3636.0,3635.8,2.75039502]
[1754043647223,0.1376,3636.0,3635.9,0.7173]
[1754043647466,0.1376,3636.0,3635.9,3.46765066]
[1754043647929,0.1376,3636.0,3635.9,0.7173]
[1754043648331,0.1376,3636.0,3635.9,3.46765066]
[1754043648579,0.1376,3636.0,3635.9,0.7173]
[1754043648930,0.1376,3636.0,3635.9,3.46765066]
[1754043649764,0.1376,3636.0,3635.9,0.7173]
[1754043650130,0.1376,3636.0,3635.9,3.46765066]
[1754043651031,0.1376,3636.0,3635.9,0.7173]
[1754043651232,0.1376,3636.0,3635.9,3.90945066]
[1754043651427,4.216,3636.7,3636.3,2.75004597]
[1754043651629,2.74961514,3636.9,3636.4,0.7173]
[1754043651867,2.74961514,3636.9,3636.5,0.7173]
[1754043652179,2.74961514,3636.9,3636.3,3.19184597]
[1754043652180,0.1376,3636.4,3636.3,3.19184597]
[1754043652732,0.1376,3636.4,3636.3,3.90914597]
[1754043652934,7.06,3637.2,3636.3,2.24652783]
[1754043653262,0.1376,3636.6,3636.5,2.74989687]
[1754043653464,7.06,3637.2,3636.7,2.74969594]
[1754043653677,7.06,3637.2,3636.8,0.7173]
[1754043654167,7.06,3637.2,3636.9,0.7173]
[1754043654531,0.1376,3637.0,3636.9,0.7173]
[1754043654935,0.1376,3637.0,3636.7,4.215]
[1754043655135,2.88727003,3636.8,3636.2,0.7173]
[1754043655368,0.1376,3636.6,3636.3,4.215]
[1754043655763,0.1376,3636.6,3636.3,0.7173]
[1754043656081,0.1376,3636.6,3636.4,4.215]
[1754043656285,0.1376,3636.6,3636.4,4.9323]
[1754043656489,0.1376,3636.6,3636.4,4.215]
[1754043656787,0.1376,3636.6,3636.2,0.7173]
[1754043656941,3.20909102,3636.8,3636.3,4.215]
[1754043657140,0.1376,3636.4,3636.3,4.9323]
[1754043657341,0.99470565,3637.0,3636.4,2.74991415]
[1754043657581,9.96445192,3637.1,3636.4,2.7499225]
[1754043657783,0.1376,3636.6,3636.5,3.46719687]
[1754043657967,0.1376,3636.6,3636.5,3.90899687]
[1754043658556,0.1376,3636.6,3636.5,1.1591]
[1754043658754,0.1376,3636.6,3636.5,3.90899687]
[1754043659580,0.1376,3636.6,3636.5,1.1591]
[1754043659942,0.1376,3636.6,3636.5,3.90899687]
[1754043660139,0.1376,3636.6,3636.5,2.74989687]
[1754043660352,0.1376,3636.6,3636.4,2.74994992]
[1754043660573,0.4594,3636.6,3636.5,4.214]
[1754043660776,0.1376,3636.4,3636.1,0.7173]
[1754043660978,0.1376,3636.2,3636.1,4.214]
[1754043661354,0.1376,3636.3,3636.1,7.68149938]
[1754043661554,0.1376,3636.3,3636.2,0.7173]
[1754043661761,2.74953149,3637.0,3636.4,2.74994368]
[1754043661943,0.1376,3636.5,3636.4,6.96394368]
[1754043662147,0.1376,3636.5,3636.4,4.214]
[1754043662345,0.1376,3636.5,3636.4,6.9639725]
[1754043662557,0.1376,3636.5,3636.4,8.1230725]
[1754043662951,7.06,3637.2,3636.4,6.46041304]
[1754043663157,7.06,3637.2,3636.9,2.74954647]
[1754043663387,0.1376,3637.0,3636.7,4.6558]
[1754043663558,0.1376,3637.0,3636.7,7.4054878]
[1754043663757,0.1376,3637.0,3636.7,7.4055318]
[1754043663969,0.1376,3637.0,3636.8,0.7173]
[1754043664292,0.1376,3637.0,3636.8,3.46695895]
[1754043664585,0.1376,3637.0,3636.9,0.7173]
[1754043664973,0.1376,3637.0,3636.7,5.13874798]
[1754043665288,0.1376,3637.0,3636.8,0.7173]
[1754043666996,0.1376,3636.8,3636.7,4.42144798]
[1754043667191,0.1376,3636.8,3636.7,0.20744798]
[1754043667390,0.1376,3636.8,3636.6,2.74982092]
[1754043667691,0.1376,3636.8,3636.6,0.7173]
[1754043667890,0.1376,3636.8,3636.4,4.214]
[1754043667891,0.1376,3636.8,3636.7,0.7173]
[1754043668555,7.06,3637.2,3636.8,2.74961254]
[1754043668762,7.06,3637.2,3636.9,0.7173]
[1754043669080,7.06,3637.2,3636.9,3.46687371]
[1754043669277,0.1376,3637.0,3636.8,4.6558]
[1754043669484,0.1376,3637.0,3636.8,4.214]
[1754043669995,0.1376,3637.0,3636.7,4.214]
[1754043670304,0.1376,3637.0,3636.8,0.7173]
[1754043671012,0.1376,3637.0,3636.7,6.96373301]
[1754043671222,0.1376,3637.0,3636.8,0.7173]
[1754043671580,0.1376,3637.0,3636.7,7.40553301]
[1754043671892,0.1376,3637.0,3636.9,0.7173]
[1754043672666,0.1376,3637.0,3636.7,4.42289955]
[1754043672871,1.13230502,3637.0,3636.7,4.213]
[1754043673269,3.20906982,3636.9,3636.2,2.75006064]
[1754043673494,0.1376,3636.4,3636.1,4.213]
[1754043673675,2.74982312,3636.6,3636.1,4.213]
[1754043673676,0.1376,3636.2,3636.1,6.96318019]
[1754043673894,0.1376,3636.2,3635.8,2.75037369]
[1754043674091,0.1376,3636.2,3636.0,2.750266]
[1754043674581,0.1376,3636.2,3636.1,0.7173]
[1754043674923,0.1376,3636.2,3636.1,3.46749938]
[1754043675218,0.1376,3636.2,3636.1,4.9303]
[1754043678119,0.1376,3636.2,3636.1,0.7173]
[1754043678424,0.1376,3636.2,3636.1,4.213]
[1754043678425,2.88774988,3636.2,3636.1,4.213]
[1754043678585,0.61,3636.2,3635.9,4.213]
[1754043678785,2.75014432,3636.2,3635.9,4.213]
[1754043678985,0.1376,3636.0,3635.9,4.9096]
[1754043680122,0.1376,3636.0,3635.9,4.213]
[1754043680422,2.75035925,3635.9,3635.6,0.6966]
[1754043680623,0.1376,3635.8,3635.7,4.213]
[1754043681189,0.1376,3635.8,3635.6,4.213]
[1754043681589,0.1376,3635.8,3635.6,4.9096]
[1754043681819,0.1376,3635.8,3635.6,4.213]
[1754043682018,0.1376,3635.8,3635.7,0.6966]
[1754043682327,0.1376,3635.8,3635.7,1.1323]
[1754043682725,0.1376,3635.8,3635.7,0.6966]
[1754043684010,0.1376,3635.8,3635.7,1.1323]
[1754043684528,0.1376,3635.8,3635.7,0.6966]
[1754043684946,0.1376,3635.8,3635.6,4.213]
[1754043686407,0.1376,3635.8,3635.5,4.9096]
[1754043686615,0.1376,3635.6,3635.5,4.9096]
[1754043686996,0.1376,3635.6,3635.5,4.213]
[1754043691017,0.1376,3635.6,3635.5,6.96365328]
[1754043691352,0.1376,3635.6,3635.5,4.213]
[1754043692264,0.1376,3635.6,3635.5,6.96365328]
[1754043692954,0.1376,3635.6,3635.5,7.93509328]
[1754043693262,2.75008053,3636.3,3635.7,2.7504799]
[1754043693470,2.75008053,3636.3,3635.8,4.213]
[1754043693667,5.74999441,3636.4,3635.8,4.213]
[1754043693852,0.1376,3635.9,3635.8,4.213]
[1754043695138,2.75042631,3635.8,3635.7,0.6966]
[1754043695328,2.75045603,3635.8,3635.3,0.6966]
[1754043695532,2.75045603,3635.8,3635.5,4.213]
[1754043695971,0.1376,3635.6,3635.5,4.213]
[1754043698283,2.75065775,3635.5,3635.3,4.213]
[1754043698615,0.1376,3635.4,3635.3,0.6966]
[1754043698918,0.1376,3635.4,3635.3,4.9096]
[1754043699300,0.1376,3635.4,3635.3,0.6966]
[1754043699519,0.1376,3635.4,3635.3,4.9096]
[1754043699715,0.1376,3635.4,3634.9,0.6966]
[1754043699903,0.1376,3635.0,3634.9,4.213]
[1754043700086,0.1376,3635.0,3634.7,4.9096]
[1754043700283,0.1376,3634.8,3634.7,4.9096]
[1754043700708,0.1376,3634.8,3633.9,3.0]
[1754043700709,0.1376,3634.8,3634.1,0.6966]
[1754043700908,0.1376,3634.5,3634.1,0.6966]
[1754043701215,0.1376,3634.5,3634.2,4.6487]
[1754043701417,0.1376,3634.5,3634.2,4.213]
[1754043701719,0.1376,3634.5,3634.3,1.1323]
[1754043702117,0.1376,3634.5,3634.3,0.4357]
[1754043702288,0.1376,3634.5,3634.4,0.6966]
[1754043702817,0.1376,3634.5,3634.4,1.1323]
[1754043703502,0.1376,3634.5,3634.4,0.6966]
[1754043703703,0.1376,3634.5,3634.2,4.213]
[1754043703704,2.7514858,3634.4,3634.1,0.6966]
[1754043703912,2.75171361,3634.1,3633.8,4.9096]
[1754043704109,2.75171361,3634.1,3633.4,0.34431673]
[1754043704110,2.75209158,3633.6,3633.4,0.20671673]
[1754043704295,2.75209158,3633.6,3632.1,6.609]
[1754043704296,2.88971579,3633.6,3633.0,4.213]
[1754043704619,5.75159345,3634.3,3633.2,2.75239458]
[1754043704620,0.1376,3633.3,3633.2,2.75239458]
[1754043704920,0.1376,3633.7,3633.3,2.75226724]
[1754043705135,2.88962167,3633.7,3633.4,5.3453]
[1754043705285,0.0152,3634.1,3633.0,0.90575074]
[1754043705614,0.1376,3633.3,3633.0,4.9096]
[1754043705920,3.22450372,3633.6,3633.0,4.213]
[1754043705921,0.1376,3633.1,3633.0,4.213]
[1754043706423,0.1376,3633.1,3633.0,4.9096]
[1754043706626,0.1376,3633.1,3633.0,4.213]
[1754043706818,0.1376,3633.1,3633.0,4.9081]
[1754043707589,0.1376,3633.1,3632.4,0.1376]
[1754043707590,0.42660343,3633.1,3632.4,0.1376]
[1754043707796,0.1376,3632.7,3632.2,7.66225198]
[1754043708027,0.1376,3632.5,3632.3,3.89612643]
[1754043708343,0.1376,3632.5,3632.4,1.1431]
[1754043709611,0.1376,3632.5,3632.4,3.89610077]
[1754043709815,0.1376,3632.5,3632.4,1.1431]
[1754043710122,0.1376,3632.5,3632.4,3.89610077]
[1754043710633,0.1376,3632.5,3632.4,1.1431]
[1754043710789,0.1376,3632.5,3632.4,0.6951]
[1754043712592,0.1376,3632.5,3632.4,1.1431]
[1754043713193,0.1376,3632.5,3632.4,3.89610077]
[1754043713495,0.1376,3632.5,3632.4,1.1431]
[1754043714096,0.1376,3632.5,3632.4,3.89610077]
[1754043714736,0.1376,3632.5,3632.4,1.1431]
[1754043715032,0.1376,3632.5,3632.4,3.89610077]
[1754043715607,0.1376,3632.5,3632.4,1.1431]
[1754043715812,0.1376,3632.5,3632.4,3.89610077]
[1754043716634,0.1376,3632.5,3632.4,5.3581]
[1754043717334,0.1376,3632.5,3632.4,4.9101]
[1754043719100,0.1376,3632.5,3632.4,7.66310077]
[1754043719298,0.1376,3632.5,3632.4,8.11110077]
[1754043719702,0.1376,3632.5,3632.4,5.3581]
[1754043719914,0.1376,3632.5,3632.4,8.11110077]
[1754043720437,0.4359,3633.7,3632.6,2.75280547]
[1754043720638,0.4359,3633.7,3632.7,3.89587341]
[1754043720639,0.1376,3632.8,3632.7,3.89587341]
[1754043721141,4.215,3634.3,3633.3,2.75228565]
[1754043721354,0.1376,3633.6,3633.4,1.1431]
[1754043721514,0.1376,3633.8,3633.7,2.75201585]
[1754043721703,7.06,3634.3,3633.8,3.89504011]
[1754043721704,0.1376,3634.0,3633.8,3.89504011]
[1754043721909,0.1376,3634.0,3633.9,5.3581]
[1754043722105,2.75198844,3633.8,3633.3,0.1376]
[1754043722330,14.68065844,3634.0,3633.4,0.6951]
[1754043722532,0.4359,3633.9,3633.4,2.75218149]
[1754043722759,2.75163722,3634.2,3633.5,3.89525128]
[1754043722930,2.75163722,3634.2,3633.5,3.20015128]
[1754043723131,2.75163722,3634.2,3633.6,0.6951]
[1754043723332,2.75171924,3634.1,3633.6,0.6951]
[1754043723632,0.1376,3633.7,3633.5,0.448]
[1754043723941,0.1376,3633.7,3633.4,4.41680299]
[1754043724138,0.1376,3633.5,3633.4,4.41680299]
[1754043724334,0.1376,3633.5,3633.4,4.215]
[1754043724531,0.1376,3633.5,3632.7,4.215]
[1754043724532,2.75246701,3633.2,3632.7,4.215]
[1754043724837,0.1376,3633.3,3632.8,3.4477488]
[1754043725035,2.75224307,3633.4,3632.9,0.6951]
[1754043725367,0.1376,3632.9,3632.8,2.75269764]
[1754043725531,0.1376,3632.9,3632.8,0.21016601]
[1754043725728,0.1376,3632.9,3632.4,0.1376]
[1754043726032,0.1376,3632.9,3632.3,2.75305854]
[1754043726033,2.89022359,3632.9,3632.5,4.9101]
[1754043726241,0.1376,3632.6,3632.5,4.9101]
[1754043726463,0.1376,3632.6,3631.9,0.6951]
[1754043726631,4.215,3633.2,3631.9,0.6951]
[1754043726632,2.7527971,3632.7,3632.1,2.75322155]
[1754043726830,2.7527971,3632.7,3632.2,0.6951]
[1754043727066,2.7527971,3632.7,3632.0,3.20127816]
[1754043727227,2.7527971,3632.7,3632.3,0.6951]
[1754043727432,2.75272745,3632.8,3632.3,0.6951]
[1754043727628,0.1376,3632.4,3632.1,2.75321677]
[1754043727859,10.2484505,3633.0,3632.1,0.448]
[1754043727860,0.1376,3632.2,3632.1,0.448]
[1754043728245,0.1376,3632.2,3632.1,1.1431]
[1754043728441,0.1376,3632.2,3632.1,3.89632816]
[1754043728642,7.06,3633.0,3632.4,2.75297013]
[1754043728882,0.1376,3632.5,3632.4,2.75300077]
[1754043729637,0.1376,3632.5,3632.4,0.6951]
[1754043730290,0.1376,3632.5,3632.3,4.218]
[1754043730449,0.1376,3632.5,3632.3,4.9131]
[1754043731350,0.1376,3632.5,3632.3,6.97105957]
[1754043731558,0.1376,3632.5,3632.4,0.6951]
[1754043732973,2.7530018,3632.4,3632.2,0.6951]
[1754043733170,0.28906018,3632.4,3632.2,4.216]
[1754043734262,0.1376,3632.1,3632.0,4.9111]
[1754043734984,0.1376,3632.1,3632.0,7.66440396]
[1754043735154,0.1376,3632.3,3632.0,8.11240396]
[1754043735350,0.1376,3632.3,3632.2,2.75311917]
[1754043735946,0.1376,3632.3,3632.2,3.89621917]
[1754043736146,0.1376,3632.3,3632.2,8.11221917]
[1754043736878,0.1376,3632.3,3632.2,5.3591]
[1754043737077,0.1376,3632.3,3632.2,7.66425235]
[1754043737353,2.75264714,3632.9,3632.3,2.75306286]
[1754043737554,0.1376,3632.4,3632.3,2.75306286]
[1754043737791,0.1376,3632.4,3632.3,3.43096286]
[1754043738487,0.1376,3632.4,3632.2,4.216]
[1754043738688,0.1376,3632.4,3632.2,4.8939]
[1754043739192,0.1376,3632.4,3632.1,0.6779]
[1754043739491,0.5957,3632.4,3632.1,4.215]
[1754043739788,0.1376,3632.2,3632.0,4.215]
[1754043740685,2.75323558,3632.1,3631.9,4.215]
[1754043740856,0.4581,3632.1,3631.9,4.215]
[1754043741057,0.1376,3632.0,3631.9,4.215]
[1754043741448,0.1376,3632.0,3631.8,0.6779]
[1754043742157,0.1376,3632.0,3631.8,3.43133982]
[1754043742782,0.1376,3632.0,3631.9,2.75337977]
[1754043743093,0.1376,3632.0,3631.9,0.6779]
[1754043744866,0.1376,3632.0,3631.7,4.215]
[1754043745407,0.1376,3632.0,3631.7,4.8929]
[1754043745602,0.1376,3632.0,3631.7,4.215]
[1754043745902,2.7530096,3632.4,3631.8,3.43133991]
[1754043745903,2.75300077,3632.4,3631.8,3.43133991]
[1754043746105,3.04139173,3632.4,3631.8,3.89993991]
[1754043746305,0.1376,3631.9,3631.8,1.1465]
[1754043746465,0.1376,3631.9,3631.8,0.6779]
[1754043746671,0.1376,3631.9,3631.8,3.43135558]
[1754043747210,0.1376,3631.9,3631.8,0.6779]
[1754043747372,0.1376,3631.9,3631.8,3.43135558]
[1754043748679,0.1376,3631.9,3631.8,5.00710966]
[1754043748883,0.1376,3632.4,3631.8,2.39125408]
[1754043749213,0.1376,3632.4,3632.0,2.75330396]
[1754043749368,0.1376,3632.4,3632.1,4.216]
[1754043749568,2.75289514,3632.6,3632.1,4.8939]
[1754043749771,0.1376,3632.2,3632.1,4.8939]
[1754043750010,0.1376,3632.2,3632.1,7.64712816]
[1754043750210,0.1376,3632.2,3632.1,6.96922816]
[1754043750374,0.1376,3632.2,3632.1,7.64712816]
[1754043750913,0.1376,3632.2,3632.1,4.8939]
[1754043751586,0.1376,3632.2,3632.1,7.64712816]
[1754043751782,4.215,3633.1,3632.4,2.7529653]
[1754043751997,4.215,3633.1,3632.5,0.6779]
[1754043751998,2.75255831,3633.0,3632.5,0.6779]
[1754043752390,0.1376,3632.6,3632.5,0.6779]
[1754043753511,0.1376,3632.6,3632.5,1.1465]
[1754043754402,0.1376,3632.6,3632.5,3.89942498]
[1754043754715,0.1376,3632.6,3632.4,4.215]
[1754043755270,0.1376,3632.6,3632.5,0.6779]
[1754043757577,0.1376,3632.6,3632.4,4.215]
[1754043757922,0.1376,3632.6,3632.4,4.8929]
[1754043758679,0.1376,3632.6,3632.4,4.215]
[1754043759189,0.5957,3632.6,3632.4,4.215]
[1754043759391,0.1376,3632.6,3632.5,0.6779]
[1754043759906,0.1376,3632.6,3632.5,3.43079276]
[1754043760238,0.1376,3632.6,3632.5,0.6779]
[1754043761230,0.1376,3632.6,3632.5,3.43082498]
[1754043761895,3.0,3633.7,3632.5,2.2332563]
[1754043762086,0.1376,3632.9,3632.8,2.75266531]
[1754043762284,0.1376,3632.9,3632.8,8.11416531]
[1754043762484,1.35329049,3633.8,3633.0,2.7525461]
[1754043762794,0.1376,3633.6,3633.5,2.75211905]
[1754043762994,0.1376,3633.6,3633.5,4.8929]
[1754043763189,0.1376,3633.6,3633.3,4.215]
[1754043763396,0.5957,3633.6,3633.3,4.215]
[1754043763701,0.1376,3633.6,3633.4,3.43012605]
[1754043764106,0.1376,3633.6,3633.5,0.6779]
[1754043764835,2.88974795,3633.6,3633.3,4.215]
[1754043765045,0.1376,3633.4,3633.1,4.215]
[1754043765222,0.1376,3633.3,3632.9,4.8929]
[1754043765394,0.1376,3633.0,3632.9,4.8929]
[1754043765583,0.1376,3633.0,3632.6,2.7528312]
[1754043765789,2.75259196,3633.0,3632.7,4.214]
[1754043765989,0.1376,3632.8,3632.7,4.214]
[1754043766232,0.1376,3632.8,3632.7,4.8919]
[1754043766421,0.1376,3632.8,3632.7,8.11327341]
[1754043766723,0.1376,3632.8,3632.7,8.31922434]
[1754043766906,0.1376,3632.8,3632.7,5.56645093]
[1754043767640,0.1376,3632.8,3632.7,5.09785093]
[1754043768727,0.1376,3632.8,3632.7,7.85062434]
[1754043770592,0.1376,3632.6,3632.5,0.4641]
[1754043770886,0.1376,3632.6,3632.5,3.21702498]
[1754043771090,0.1376,3632.6,3632.5,3.86732498]
[1754043772127,0.1376,3632.6,3632.5,1.1144]
[1754043772430,0.1376,3632.6,3632.5,0.6503]
[1754043775519,0.1376,3632.6,3632.1,2.75320656]
[1754043775721,2.89044919,3632.6,3632.4,0.6503]
[1754043776027,2.89044919,3632.6,3632.5,4.214]
[1754043776231,2.75284919,3632.6,3632.5,4.214]
[1754043776416,2.7529624,3632.5,3632.1,0.6503]
[1754043776731,2.75294569,3632.5,3632.3,4.214]
[1754043776900,2.75294569,3632.5,3632.3,4.8643]
[1754043777101,0.1376,3632.4,3632.3,4.8643]
[1754043778421,0.1376,3632.4,3632.3,5.3284]
[1754043779434,0.1376,3632.4,3632.3,4.8643]
[1754043780365,0.1376,3632.4,3632.3,9.21289094]
[1754043780639,0.1376,3632.4,3632.3,9.18536018]
[1754043782949,0.1376,3632.4,3632.3,12.73536018]
[1754043783262,0.1376,3633.0,3632.9,2.75262187]
[1754043783563,0.1376,3633.0,3632.9,4.8643]
[1754043786916,3.63136511,3633.0,3632.1,0.6503]
[1754043787267,0.1376,3632.7,3632.3,5.75302319]
[1754043787417,2.7525793,3633.0,3632.4,4.8643]
[1754043787617,2.7525793,3633.0,3632.4,7.61729991]
[1754043787842,2.75264004,3632.9,3632.4,4.8643]
[1754043788060,2.7525461,3633.0,3632.4,4.8643]
[1754043788262,2.75268804,3632.9,3632.4,4.8643]
[1754043788426,2.75268804,3632.9,3632.4,4.214]
[1754043788617,0.1376,3632.5,3632.4,4.214]
[1754043789357,0.1376,3632.5,3632.2,0.6503]
[1754043789516,2.75311269,3632.3,3632.0,0.86089645]
[1754043789848,2.75294491,3632.5,3632.1,4.8643]
[1754043790040,2.75249522,3633.1,3632.2,5.3284]
[1754043790041,4.214,3633.1,3632.2,5.3284]
[1754043790250,0.1376,3632.4,3632.3,0.6503]
[1754043790451,0.1376,3632.4,3632.3,3.40337656]
[1754043790655,0.1376,3632.4,3632.3,1.1144]
[1754043790833,0.1376,3632.4,3632.3,0.6503]
[1754043791359,0.1376,3632.4,3632.3,1.1144]
[1754043791566,0.1376,3632.4,3632.3,0.6503]
[1754043792356,0.1376,3632.4,3632.3,4.8643]
[1754043792751,0.1376,3632.4,3632.3,4.214]
[1754043792963,0.1376,3632.4,3632.2,4.214]
[1754043793167,3.20523063,3632.4,3632.2,4.214]
[1754043793369,0.1376,3632.3,3632.2,4.214]
[1754043794274,0.1376,3632.3,3632.2,4.8643]
[1754043797072,0.1376,3632.3,3632.0,4.42021376]
[1754043797234,2.75300803,3632.4,3632.1,0.6947]
[1754043797434,0.1376,3632.1,3632.0,4.214]
[1754043797643,0.1376,3632.1,3632.0,4.41723914]
[1754043798171,0.1376,3632.1,3632.0,5.11193914]
[1754043798374,0.1376,3632.1,3632.0,4.41723914]
[1754043798561,0.1376,3632.1,3632.0,5.11193914]
[1754043799071,0.1376,3632.1,3632.0,4.9087]
[1754043801898,0.1376,3632.1,3632.0,4.9087]
[1754043802201,0.1376,3632.1,3632.0,5.11087901]
[1754043805093,2.75339252,3631.9,3631.7,0.6947]
[1754043805315,2.89105558,3631.8,3631.7,0.20914785]
[1754043805491,0.1376,3631.8,3631.3,0.6947]
[1754043805690,2.75354669,3631.7,3631.4,4.214]
[1754043805912,2.75354669,3631.7,3631.5,0.6947]
[1754043806117,4.48334539,3631.7,3628.7,0.60334695]
[1754043806277,2.75368305,3631.5,3630.8,4.214]
[1754043806478,14.54466811,3631.6,3630.9,0.6947]
[1754043806713,2.75383869,3631.3,3631.0,4.214]
[1754043806920,2.75368305,3631.5,3631.0,4.214]
[1754043807116,2.75377865,3631.4,3631.1,0.6947]
[1754043807613,0.4387,3631.5,3631.1,0.6947]
[1754043807918,0.4387,3631.5,3630.5,0.2436749]
[1754043807919,2.75490298,3629.9,3629.3,6.615]
[1754043808118,2.75499314,3629.8,3629.5,0.6947]
[1754043808414,11.35236009,3630.3,3629.6,4.9077]
[1754043808582,2.75478334,3630.1,3629.7,0.6947]
[1754043808782,4.213,3630.6,3629.5,0.2099597]
[1754043808783,2.75468539,3630.2,3629.8,4.213]